bitfinex-derivatives/quotes_ETHF0:USTF0_20250810
["timestamp","ask_amount","ask_price","bid_price","bid_amount"]
[1754793416710,3.6206,4265.9,4265.7,0.7636]
[1754793416907,3.6206,4265.9,4265.6,3.2078]
[1754793416908,3.6206,4265.8,4265.6,3.2078]
[1754793417111,3.6206,4265.8,4265.2,0.46879]
[1754793417112,0.7595,4265.7,4265.2,0.46879]
[1754793417414,2.99318215,4265.6,4265.2,0.46879]
[1754793417601,3.6206,4265.3,4265.1,3.6766]
[1754793417799,2.99318215,4265.7,4265.1,3.6766]
[1754793418004,6.61378215,4265.2,4265.1,3.6766]
[1754793418200,3.6206,4265.2,4265.1,0.4688]
[1754793418404,6.73285544,4265.2,4265.1,0.4688]
[1754793418907,6.73285544,4265.2,4265.0,25.642]
[1754793419208,3.6206,4265.1,4265.0,25.642]
[1754793419610,6.62071102,4265.1,4265.0,25.642]
[1754793420210,6.62071102,4265.1,4265.0,26.9995]
[1754793420413,6.62071102,4265.1,4265.0,27.7631]
[1754793420614,2.8611,4265.8,4265.5,2.8165]
[1754793420805,1.57,4265.6,4265.3,0.46878]
[1754793421013,1.57,4265.6,4265.0,26.11081]
[1754793421208,0.46881,4265.1,4264.4,3.2078]
[1754793421407,0.7595,4265.1,4264.3,0.46889]
[1754793421612,2.8611,4265.0,4264.4,0.46888]
[1754793421910,1.57,4264.9,4264.4,1.82638]
[1754793422111,3.6206,4264.8,4264.6,0.46886]
[1754793422312,3.05733546,4264.9,4264.8,2.8165]
[1754793422611,3.03821596,4265.1,4264.8,0.7636]
[1754793422815,3.03821596,4264.9,4264.5,0.46887]
[1754793423005,2.8611,4264.7,4264.6,2.1211]
[1754793423209,3.6206,4264.7,4264.6,2.1211]
[1754793423514,3.11377197,4264.7,4264.6,2.8165]
[1754793423812,3.6206,4265.2,4264.8,2.0529]
[1754793424012,2.0506,4265.2,4264.7,0.46885]
[1754793424217,5.97487197,4265.1,4264.8,2.8165]
[1754793424411,5.97487197,4265.1,4265.0,2.1211]
[1754793425014,6.73437197,4265.1,4265.0,2.1211]
[1754793425210,0.7841,4265.0,4264.7,0.6975]
[1754793425412,2.8226,4264.9,4264.8,3.26814]
[1754793425614,3.05252946,4265.1,4265.0,3.26812]
[1754793425808,1.5253,4265.5,4265.4,0.6975]
[1754793426016,1.5253,4265.5,4265.4,2.7993]
[1754793426220,4.57782946,4265.5,4265.4,2.7993]
[1754793426418,3.05252946,4265.5,4265.4,2.7993]
[1754793426617,6.65922946,4265.5,4265.4,2.1018]
[1754793426812,6.65922946,4265.5,4265.2,0.46879]
[1754793426813,2.0814,4265.4,4265.2,1.25919]
[1754793427026,3.05252946,4265.5,4265.3,2.7993]
[1754793427320,1.5253,4265.8,4265.7,3.26804]
[1754793427519,3.2078,4266.4,4266.0,0.4687]
[1754793427820,5.84485556,4266.2,4266.1,2.1018]
[1754793428019,3.02225556,4266.2,4266.1,2.1018]
[1754793428214,3.2078,4266.4,4266.2,3.26799]
[1754793428524,6.8145,4266.4,4266.3,2.1018]
[1754793428726,6.8145,4266.4,4266.1,0.46869]
[1754793428918,3.6067,4266.2,4266.1,1.25909]
[1754793429127,3.6067,4266.2,4266.1,2.57049]
[1754793429527,3.6067,4266.2,4266.1,2.1018]
[1754793430326,3.2078,4266.4,4266.2,2.57049]
[1754793430327,1.5253,4266.3,4266.2,2.57049]
[1754793430527,1.5253,4266.3,4266.2,1.16619]
[1754793430719,3.06242712,4266.3,4266.2,0.46869]
[1754793431120,3.06242712,4266.3,4266.2,2.57049]
[1754793431321,1.5253,4266.5,4266.3,2.7993]
[1754793431623,3.6067,4266.3,4265.8,0.6975]
[1754793431923,1.5253,4265.5,4265.1,0.46881]
[1754793432129,0.46872,4265.9,4264.9,3.2078]
[1754793432328,0.46876,4265.5,4264.9,2.1018]
[1754793432530,3.6067,4265.4,4264.9,2.1018]
[1754793432720,0.46881,4265.1,4264.5,2.57066]
[1754793432924,2.0814,4264.9,4264.8,0.7904]
[1754793433120,1.2973,4264.9,4264.8,2.7993]
[1754793433319,4.294208,4264.9,4264.8,2.7993]
[1754793433516,5.819508,4264.9,4264.8,2.7993]
[1754793433722,6.603608,4264.9,4264.8,2.7993]
[1754793434026,3.6067,4264.8,4264.6,0.5]
[1754793434225,2.996908,4264.9,4264.6,0.5]
[1754793434226,3.6067,4264.7,4264.6,0.5]
[1754793434429,6.67010122,4264.7,4264.6,0.5]
[1754793434727,3.6067,4264.7,4264.6,0.5]
[1754793434921,7.13895122,4264.7,4264.6,0.5]
[1754793435127,6.67010122,4264.7,4264.6,0.5]
[1754793435528,6.67010122,4264.7,4264.6,1.2904]
[1754793436134,3.06340122,4264.7,4264.6,3.2993]
[1754793436628,3.11353734,4264.9,4264.8,2.7993]
[1754793436832,3.11353734,4264.9,4264.7,0.46885]
[1754793437134,0.46879,4265.3,4264.6,0.96886]
[1754793437334,3.11353734,4264.9,4264.7,2.7993]
[1754793437627,4.59304984,4265.3,4264.9,2.7993]
[1754793437831,2.8226,4265.3,4265.1,2.7993]
[1754793438031,2.0814,4265.1,4264.8,3.2078]
[1754793438232,1.2973,4265.0,4264.9,2.1018]
[1754793438430,5.16584736,4265.0,4264.9,2.1018]
[1754793438622,3.08444736,4265.0,4264.8,3.2078]
[1754793438826,3.6067,4264.9,4264.8,3.2078]
[1754793439034,1.2973,4264.7,4264.6,0.5]
[1754793439233,3.6067,4264.7,4264.6,0.5]
[1754793439533,2.98013234,4264.7,4264.3,0.46889]
[1754793439734,3.6067,4264.4,4264.3,0.46889]
[1754793440033,3.6067,4264.4,4264.3,1.25929]
[1754793440635,3.6067,4264.4,4264.3,0.7904]
[1754793441128,3.6067,4264.4,4264.2,4.9881]
[1754793441330,0.46891,4264.2,4263.7,3.2078]
[1754793441536,3.2078,4264.1,4263.2,2.1018]
[1754793441736,1.2973,4263.9,4263.3,0.469]
[1754793442035,3.07030098,4263.8,4263.3,0.469]
[1754793442235,1.2973,4263.6,4263.4,2.8215]
[1754793442532,3.58123483,4263.5,4262.9,1.3114]
[1754793442737,2.3094,4263.2,4262.8,1.25946]
[1754793442939,0.46902,4263.2,4262.5,3.9982]
[1754793443136,3.6067,4262.7,4261.9,0.96253861]
[1754793443433,2.8226,4262.6,4262.4,0.4691]
[1754793443637,3.6067,4263.0,4262.4,0.4691]
[1754793443934,3.08728982,4262.9,4262.6,0.46908]
[1754793444137,3.08728982,4262.9,4262.7,2.8215]
[1754793444433,3.08728982,4263.0,4262.8,0.46906]
[1754793444625,1.2973,4263.0,4262.9,1.5101]
[1754793444828,3.6067,4262.8,4262.3,0.46911]
[1754793445131,3.10097814,4262.7,4262.3,1.3114]
[1754793445438,3.00744696,4262.8,4262.2,0.46912]
[1754793445834,2.3094,4262.4,4262.2,0.46912]
[1754793446033,2.8226,4262.3,4262.2,0.46912]
[1754793446233,2.8226,4262.3,4262.2,4.08102]
[1754793446437,2.8226,4262.3,4262.2,3.6119]
[1754793446638,3.6067,4262.3,4262.2,2.3005]
[1754793447534,0.7841,4262.2,4261.9,0.46916]
[1754793447727,4.58733531,4262.3,4262.2,0.46913]
[1754793447926,2.8226,4262.3,4262.2,4.08103]
[1754793448130,6.8145,4263.1,4262.5,4.08098]
[1754793448630,3.6067,4262.9,4262.6,3.6119]
[1754793448835,3.6067,4262.9,4262.3,2.1018]
[1754793449038,6.72417159,4262.8,4262.4,0.4691]
[1754793449233,2.8226,4262.6,4262.5,3.6119]
[1754793449430,1.5253,4262.6,4262.5,3.6119]
[1754793449631,2.99171888,4262.6,4262.5,3.6119]
[1754793450032,6.59841888,4262.9,4262.6,0.46908]
[1754793450335,3.6067,4262.9,4262.8,3.6119]
[1754793450733,3.6067,4262.8,4262.2,3.2078]
[1754793450932,2.8226,4262.7,4262.3,0.46911]
[1754793451239,2.98607538,4262.7,4262.3,0.46911]
[1754793451426,2.98607538,4263.0,4262.3,0.46911]
[1754793451427,3.6067,4262.4,4262.3,1.25951]
[1754793451839,6.68870371,4262.4,4262.3,0.46911]
[1754793452131,6.68870371,4262.4,4262.0,0.46915]
[1754793452334,3.08200371,4262.4,4262.0,0.46915]
[1754793452540,3.08200371,4262.4,4262.1,0.7904]
[1754793452541,1.2973,4262.2,4262.1,0.7904]
[1754793452737,2.8226,4262.2,4262.1,3.6119]
[1754793452936,4.59562369,4262.2,4262.1,3.6119]
[1754793453736,3.07032369,4262.2,4262.1,3.6119]
[1754793454039,3.0415157,4262.3,4262.2,0.46913]
[1754793454231,3.0415157,4262.3,4262.2,4.08103]
[1754793454434,2.8226,4262.3,4262.2,4.08103]
[1754793454628,3.67683,4263.1,4262.6,1.5101]
[1754793454629,2.3094,4263.0,4262.6,1.5101]
[1754793454840,3.6067,4262.9,4262.8,3.6119]
[1754793455135,3.6067,4262.9,4261.5,1.173]
[1754793455136,2.9823616,4263.0,4262.7,0.46906]
[1754793455341,3.2078,4263.1,4263.0,4.09244]
[1754793455837,3.2078,4263.1,4262.3,3.2078]
[1754793455838,0.7891,4262.9,4262.7,0.46906]
[1754793456039,6.2360834,4263.1,4262.4,0.46909]
[1754793456040,3.6929,4262.6,4262.4,0.46909]
[1754793456239,3.6929,4262.6,4262.1,0.5]
[1754793456435,3.2078,4262.4,4262.1,0.5]
[1754793456635,3.6929,4262.2,4262.1,0.5]
[1754793457038,6.74432157,4262.2,4262.1,0.5]
[1754793457936,3.05142157,4262.2,4262.1,0.5]
[1754793458243,3.03311143,4262.3,4262.2,0.46913]
[1754793458436,6.72601143,4262.3,4262.2,2.60143]
[1754793458637,3.2078,4262.4,4262.3,3.6234]
[1754793458941,3.6929,4262.3,4262.1,0.5]
[1754793459141,3.6929,4262.2,4262.1,0.5]
[1754793459442,3.05890304,4262.2,4262.1,4.1234]
[1754793459643,2.99151982,4262.9,4262.2,0.46913]
[1754793459843,3.6929,4262.6,4262.4,0.46909]
[1754793460043,6.68441982,4262.5,4262.4,0.46909]
[1754793460343,3.6929,4262.5,4262.2,0.46912]
[1754793460542,1.5591,4262.4,4262.3,2.3027]
[1754793460741,5.1188721,4262.5,4262.3,2.3027]
[1754793460742,2.9850721,4262.5,4262.3,3.6234]
[1754793460943,3.6929,4262.9,4262.8,2.60136]
[1754793461139,3.6929,4262.9,4262.8,4.09246]
[1754793461446,6.6779721,4262.9,4262.8,4.09246]
[1754793462638,6.6779721,4262.9,4262.8,3.6234]
[1754793462834,3.6929,4262.7,4262.1,0.5]
[1754793463037,3.6929,4262.8,4262.3,1.28071]
[1754793463238,3.11561838,4262.6,4262.3,0.46911]
[1754793463441,2.9038,4262.5,4262.4,3.6234]
[1754793463745,3.6929,4262.3,4262.1,0.96913]
[1754793463945,3.6929,4262.2,4262.1,4.59253]
[1754793464746,6.79504534,4262.2,4262.1,1.3116]
[1754793464946,3.10214534,4262.2,4262.1,4.1234]
[1754793465245,3.2078,4262.9,4262.2,2.8118]
[1754793465443,3.2078,4262.9,4262.4,2.8118]
[1754793465746,3.04402091,4262.8,4262.7,0.46907]
[1754793465944,3.04402091,4262.8,4262.7,4.09247]
[1754793466145,6.73692091,4263.0,4262.8,3.6234]
[1754793466341,0.46903,4263.1,4262.8,3.6234]
[1754793466639,0.46903,4263.1,4262.1,0.5]
[1754793466640,3.6929,4262.8,4262.3,1.4911]
[1754793466943,3.6929,4262.8,4262.1,0.5]
[1754793466944,3.11299339,4262.7,4262.1,3.27183]
[1754793467140,2.81728,4262.6,4262.1,3.27183]
[1754793467343,3.6929,4262.5,4262.2,0.8116]
[1754793467542,3.6929,4262.3,4262.2,2.1323]
[1754793467936,6.67386781,4262.3,4262.2,2.1323]
[1754793468142,6.67386781,4262.3,4262.2,3.6234]
[1754793468343,3.6929,4262.2,4262.1,0.5]
[1754793468649,6.7449963,4262.2,4262.1,0.5]
[1754793468848,9.9527963,4262.2,4262.1,0.5]
[1754793469040,10.54398009,4262.2,4262.1,0.5]
[1754793469943,3.6929,4262.1,4261.2,0.8116]
[1754793470148,0.46925,4261.1,4260.9,0.8116]
[1754793470352,3.2078,4261.5,4260.8,2.8168]
[1754793470353,0.46924,4261.2,4260.8,2.8168]
[1754793470547,3.6929,4260.9,4260.8,1.4961]
[1754793470748,3.6929,4260.9,4260.8,2.3077]
[1754793470938,6.76858815,4260.9,4260.8,2.3077]
[1754793471144,6.76858815,4260.9,4260.8,4.09768]
[1754793471449,6.76858815,4260.9,4260.8,3.6284]
[1754793471842,6.76858815,4260.9,4260.8,0.005]
[1754793472652,12.76858815,4260.9,4260.8,0.005]
[1754793472850,0.46936,4260.1,4259.4,4.09283]
[1754793473153,3.11856113,4260.0,4259.4,3.6234]
[1754793473341,3.11856113,4260.0,4259.5,0.46942]
[1754793473546,2.9038,4259.9,4259.7,0.4694]
[1754793473751,3.6929,4259.9,4259.7,0.4694]
[1754793473950,3.6929,4259.9,4259.8,0.8116]
[1754793474345,6.79720726,4259.9,4259.8,0.8116]
[1754793474746,6.79720726,4259.9,4259.7,2.8118]
[1754793474747,3.6929,4259.8,4259.3,4.48884]
[1754793474947,3.10430726,4259.9,4259.3,4.48884]
[1754793474948,3.10430726,4259.9,4259.5,0.46942]
[1754793475250,3.10703025,4259.7,4259.5,0.46942]
[1754793475454,3.10703025,4260.0,4259.5,0.46942]
[1754793475654,0.46937,4260.0,4259.5,3.6234]
[1754793475955,6.8067814,4259.6,4259.5,3.6234]
[1754793476149,2.9038,4259.6,4259.5,3.6234]
[1754793476351,3.1138814,4259.6,4259.5,3.6234]
[1754793476653,3.2078,4260.3,4259.3,3.2078]
[1754793476853,3.2078,4260.3,4259.4,3.6234]
[1754793477152,3.05596145,4260.1,4259.6,0.46941]
[1754793477348,3.05596145,4260.2,4259.6,3.6234]
[1754793477550,3.6929,4259.8,4259.1,1.96056]
[1754793477748,1.3447,4259.8,4259.7,3.6234]
[1754793477944,0.4694,4259.7,4259.1,2.8118]
[1754793478253,3.03168906,4259.6,4259.1,3.28127]
[1754793478452,1.5591,4259.5,4259.3,3.6234]
[1754793478653,1.5591,4259.5,4258.0,25.21819427]
[1754793478654,1.5591,4259.5,4259.4,3.6234]
[1754793479053,6.02350584,4259.5,4259.4,3.6234]
[1754793479455,6.81260584,4259.5,4259.4,3.6234]
[1754793479655,6.02350584,4259.5,4259.4,3.6234]
[1754793479856,4.67880584,4259.5,4259.4,3.6234]
[1754793480057,3.11970584,4259.5,4259.4,3.6234]
[1754793480253,3.11970584,4259.5,4258.9,3.2078]
[1754793480254,3.2078,4259.9,4259.8,0.46939]
[1754793480453,3.2078,4260.4,4259.8,0.46939]
[1754793480652,6.9007,4260.4,4259.9,3.6234]
[1754793480853,3.06009175,4260.0,4259.8,0.46939]
[1754793481054,3.52942175,4260.3,4259.8,0.46939]
[1754793481357,3.06009175,4259.9,4259.8,0.46939]
[1754793481551,3.06009175,4260.0,4259.7,0.4694]
[1754793481752,3.6929,4260.0,4259.7,0.4694]
[1754793481952,6.76783062,4260.0,4259.9,3.6234]
[1754793482152,3.6929,4260.0,4259.9,3.6234]
[1754793482457,3.07493062,4260.0,4259.5,0.005525]
[1754793482658,3.6929,4259.6,4259.5,0.005525]
[1754793482953,6.77938491,4259.6,4259.5,0.005525]
[1754793483159,7.24879491,4259.6,4259.5,0.005525]
[1754793483655,6.77938491,4259.6,4259.5,0.005525]
[1754793484757,12.77938491,4259.6,4259.5,0.005525]
[1754793484957,0.46946,4259.2,4259.1,0.005]
[1754793485152,7.37016,4259.2,4259.1,0.005]
[1754793485347,4.15997,4259.1,4258.4,0.46954]
[1754793485552,0.46949,4258.9,4258.4,0.46954]
[1754793485860,0.7927,4258.7,4258.5,3.7358]
[1754793486052,2.8978,4258.6,4258.5,3.7358]
[1754793486359,3.06881317,4258.6,4258.5,3.7358]
[1754793486551,3.2078,4259.2,4259.0,3.7358]
[1754793486748,1.2817,4259.1,4257.3,3.2078]
[1754793486949,1.2817,4259.1,4257.0,0.4697]
[1754793486950,2.544,4257.9,4257.0,0.4697]
[1754793487155,1.6161,4257.8,4257.0,1.636]
[1754793487356,0.46966,4257.4,4257.0,1.636]
[1754793487561,2.8978,4257.2,4257.1,1.636]
[1754793487852,2.98688972,4257.2,4257.1,2.10569]
[1754793488255,3.2078,4257.8,4257.2,1.636]
[1754793488456,3.2078,4257.8,4257.6,0.46963]
[1754793488652,2.8978,4258.7,4258.1,0.46958]
[1754793488857,3.2078,4259.0,4258.3,0.46955]
[1754793489062,3.00494281,4258.6,4258.5,3.7358]
[1754793489253,0.46953,4258.5,4258.1,3.2078]
[1754793489456,0.46953,4258.5,4257.4,0.8202]
[1754793489457,0.7927,4257.7,4257.4,0.8202]
[1754793489660,0.7927,4257.7,4257.1,2.9156]
[1754793489862,3.07965142,4257.6,4256.7,3.2078]
[1754793490055,2.8978,4257.5,4256.7,3.2078]
[1754793490259,2.8978,4257.5,4256.8,0.46972]
[1754793490458,3.07965142,4257.4,4256.9,0.46971]
[1754793490661,6.77015142,4257.4,4257.2,3.7358]
[1754793490855,3.6905,4257.4,4257.3,3.7358]
[1754793491157,3.6905,4257.4,4256.7,3.2078]
[1754793491158,3.00678034,4257.4,4256.7,3.2078]
[1754793491462,3.09405915,4257.6,4256.8,3.7358]
[1754793491761,0.7927,4257.5,4256.8,3.7358]
[1754793491969,35.03448787,4259.5,4256.7,3.2078]
[1754793491970,3.6905,4257.9,4257.1,2.56948]
[1754793492259,3.09405915,4257.4,4256.9,0.46971]
[1754793492460,2.8978,4257.4,4257.3,0.8202]
[1754793492661,3.07834189,4257.5,4257.3,3.7358]
[1754793492860,3.07834189,4257.4,4257.3,3.7358]
[1754793493163,3.07834189,4257.7,4257.6,2.9156]
[1754793493358,3.2078,4258.0,4257.7,2.9156]
[1754793493563,7.20655309,4257.9,4257.3,3.7358]
[1754793493863,4.1601,4257.9,4257.3,3.7358]
[1754793494063,2.54404,4257.6,4257.0,4.20549]
[1754793494253,2.0744,4257.6,4257.1,0.46969]
[1754793494457,3.2078,4258.0,4257.1,0.46969]
[1754793494458,3.04645309,4257.5,4257.1,0.46969]
[1754793494658,2.8978,4257.4,4257.3,0.8202]
[1754793494864,2.8978,4257.4,4257.3,3.7358]
[1754793495053,5.90745941,4257.4,4257.3,3.7358]
[1754793495753,3.00965941,4257.4,4257.3,3.7358]
[1754793496065,2.8978,4257.4,4257.3,3.7358]
[1754793496357,5.99073673,4257.4,4257.3,3.7358]
[1754793496758,4.70903673,4257.4,4257.3,3.7358]
[1754793496953,3.09293673,4257.4,4257.3,3.7358]
[1754793497352,3.02221959,4257.7,4257.4,0.46965]
[1754793497561,2.9028,4257.8,4257.6,3.7358]
[1754793497761,3.6955,4257.8,4257.7,2.0998]
[1754793498162,7.16312133,4257.8,4257.7,2.0998]
[1754793498563,6.69351133,4257.8,4257.7,2.0998]
[1754793498757,6.69351133,4257.8,4256.7,3.2078]
[1754793498758,2.0744,4257.1,4255.5,3.2078]
[1754793498966,0.46982,4255.9,4254.9,3.2078]
[1754793499265,3.09639543,4255.8,4255.7,0.46984]
[1754793499765,1.6161,4257.0,4256.5,0.46975]
[1754793499960,0.7927,4257.3,4257.2,0.46966]
[1754793500356,4.0005,4258.1,4258.0,0.46958]
[1754793500562,0.7927,4258.4,4258.0,0.46958]
[1754793500766,0.7927,4259.0,4258.7,0.4695]
[1754793500965,0.7927,4259.0,4258.9,0.518]
[1754793501460,0.46952,4258.6,4256.1,0.518]
[1754793501663,0.58811464,4259.5,4256.9,1.636]
[1754793501664,3.2078,4257.5,4256.9,1.636]
[1754793501863,4.4895,4257.5,4257.2,0.46967]
[1754793502061,0.5,4257.8,4257.5,0.46964]
[1754793502365,0.5,4257.8,4257.7,2.9742]
[1754793502567,5.19098826,4257.7,4256.8,0.46971]
[1754793502762,2.0744,4257.1,4256.5,1.3382]
[1754793503066,3.11658826,4257.0,4256.5,1.80795]
[1754793503369,2.0744,4256.9,4256.8,1.636]
[1754793503862,3.08375581,4257.1,4256.9,0.518]
[1754793504057,2.0744,4257.1,4257.0,1.636]
[1754793504256,3.08375581,4257.0,4256.3,0.8202]
[1754793504456,2.0744,4257.0,4256.4,1.636]
[1754793504658,1.6161,4257.2,4256.4,1.636]
[1754793504864,2.0744,4256.7,4255.9,5.664]
[1754793505055,2.0744,4256.6,4255.9,2.4562]
[1754793505365,2.54416,4256.4,4255.7,0.518]
[1754793505565,2.0744,4256.2,4255.5,0.46986]
[1754793505760,6.22460877,4256.3,4256.0,0.518]
[1754793505969,3.01680877,4256.5,4256.2,0.8202]
[1754793506163,2.0744,4256.6,4256.4,1.636]
[1754793506359,5.09120877,4256.6,4256.5,1.636]
[1754793506668,2.0744,4256.6,4256.5,1.636]
[1754793506964,6.69155507,4256.6,4256.5,1.636]
[1754793507163,2.0744,4256.4,4256.2,2.10578]
[1754793507367,2.0744,4256.2,4256.1,1.636]
[1754793507565,1.6161,4256.0,4255.6,3.2078]
[1754793507761,5.99959671,4256.2,4255.6,3.2078]
[1754793507969,2.8978,4256.2,4255.6,4.8438]
[1754793508264,3.89449671,4256.1,4256.0,2.1058]
[1754793508465,3.10179671,4256.1,4256.0,2.6238]
[1754793508663,3.10179671,4256.1,4256.0,3.444]
[1754793508863,2.0744,4256.2,4256.0,3.444]
[1754793509070,2.0744,4256.2,4256.1,1.636]
[1754793509469,0.005,4256.6,4256.5,2.154]
[1754793509764,0.005,4256.6,4256.5,2.9742]
[1754793510663,1.6161,4256.4,4255.8,0.47483]
[1754793510864,3.6905,4255.9,4255.8,0.005]
[1754793511866,6.69120626,4255.9,4255.8,0.005]
[1754793512265,5.07510626,4255.9,4255.8,1.641]
[1754793512668,3.00070626,4255.9,4255.8,2.9792]
[1754793512868,4.8239,4256.3,4255.9,0.46982]
[1754793513070,2.0744,4256.2,4256.0,2.9742]
[1754793513270,2.0744,4256.2,4256.1,2.154]
[1754793514466,3.6905,4256.2,4256.1,1.636]
[1754793515167,3.7252,4256.1,4255.9,0.46982]
[1754793515373,3.7252,4256.0,4255.9,0.46982]
[1754793515871,0.8018,4256.1,4255.8,0.005]
[1754793516076,3.2078,4256.3,4255.8,0.005]
[1754793516267,3.08116941,4256.0,4255.8,0.005]
[1754793516567,3.2078,4256.3,4255.8,0.005]
[1754793516875,7.25230445,4256.2,4256.1,0.5]
[1754793517672,7.8415172,4256.2,4256.1,0.5]
[1754793518280,7.25230445,4256.2,4256.1,0.5]
[1754793518677,3.7252,4255.9,4255.8,0.005]
[1754793518982,7.25606278,4255.9,4255.8,0.005]
[1754793519178,7.84498761,4255.9,4255.8,0.005]
[1754793519576,7.37516761,4255.9,4255.8,0.005]
[1754793520283,7.37516761,4255.9,4255.8,1.5872]
[1754793520489,7.37516761,4255.9,4255.8,0.005]
[1754793520678,0.5,4256.2,4255.8,3.37503]
[1754793520877,2.6454,4256.2,4256.0,2.57251]
[1754793521080,2.6454,4256.2,4256.1,2.1027]
[1754793521281,0.5,4256.2,4256.1,2.9002]
[1754793522684,0.5,4256.2,4256.1,1.5822]
[1754793522885,0.5,4256.2,4256.1,2.9002]
[1754793523289,1.3018,4256.2,4256.1,2.9002]
[1754793523584,0.5,4256.2,4255.8,0.005]
[1754793523784,1.3436,4256.0,4255.8,0.005]
[1754793523980,3.7252,4255.9,4255.8,0.005]
[1754793524179,6.76214862,4255.9,4255.8,0.005]
[1754793526186,7.3512679,4255.9,4255.8,0.005]
[1754793526390,6.76214862,4255.9,4255.8,0.005]
[1754793527091,3.6259837,4255.9,4254.6,1.5822]
[1754793527287,3.7252,4255.0,4254.6,1.5822]
[1754793527490,0.8018,4255.0,4254.2,1.5822]
[1754793527684,3.2078,4254.7,4254.2,1.5822]
[1754793527989,3.7252,4254.5,4254.3,1.5822]
[1754793528185,3.7252,4254.5,4253.7,3.2078]
[1754793528186,3.7252,4254.5,4253.7,1.5822]
[1754793528491,5.13136154,4254.4,4253.2,2.9002]
[1754793528692,2.98596154,4254.4,4254.2,2.3797]
[1754793528898,3.08314891,4254.5,4254.4,2.9002]
[1754793529195,2.1454,4254.5,4254.4,1.5822]
[1754793529489,3.2078,4254.9,4254.5,0.46997]
[1754793529694,1.5798,4254.4,4254.1,1.5822]
[1754793529893,3.2078,4254.4,4254.1,1.5822]
[1754793530091,2.1454,4254.2,4254.1,1.5822]
[1754793530288,3.7252,4254.1,4253.9,2.05223]
[1754793530486,3.03743712,4254.2,4254.1,2.9002]
[1754793530681,0.8018,4254.6,4254.5,0.46997]
[1754793530882,4.7876,4255.0,4254.5,1.26747]
[1754793531094,3.7252,4254.8,4254.6,2.1027]
[1754793531284,3.06523907,4254.9,4253.8,0.5205]
[1754793531483,5.3532,4254.5,4254.0,0.47002]
[1754793531680,3.7252,4254.4,4253.8,2.1027]
[1754793531881,6.7688276,4254.4,4253.8,2.1027]
[1754793532295,6.7688276,4254.4,4254.2,0.47001]
[1754793532492,3.7252,4254.3,4253.6,0.47007]
[1754793532794,2.1454,4254.1,4254.0,1.5822]
[1754793533289,2.1454,4254.0,4253.6,0.47007]
[1754793533488,3.2078,4254.0,4253.5,0.47008]
[1754793533687,3.08858049,4253.9,4253.5,0.47008]
[1754793533880,3.7252,4253.6,4253.5,0.47008]
[1754793534388,6.81378049,4253.6,4253.5,0.47008]
[1754793534596,3.7252,4253.4,4252.9,3.2078]
[1754793534791,4.7876,4253.5,4252.9,0.47015]
[1754793534992,3.11401416,4253.3,4253.1,0.47013]
[1754793535289,2.1454,4253.1,4252.8,2.1027]
[1754793535497,2.1454,4253.0,4252.9,1.5822]
[1754793535688,5.26010433,4253.0,4252.9,1.5822]
[1754793535893,6.83990433,4253.0,4252.7,0.47017]
[1754793536092,2.1454,4252.8,4252.7,1.5822]
[1754793536391,0.8018,4253.0,4252.8,3.37036]
[1754793536592,2.1454,4253.0,4252.9,1.5822]
[1754793536793,2.1454,4253.0,4252.8,1.78816]
[1754793536794,2.1454,4252.7,4252.5,0.47019]
[1754793536996,2.1454,4252.7,4252.6,2.1027]
[1754793537293,0.005,4253.1,4252.6,0.7975]
[1754793537592,3.07097231,4253.0,4252.9,3.37034]
[1754793537793,3.87277231,4253.0,4252.4,3.2078]
[1754793537991,3.7252,4252.7,4252.5,0.47019]
[1754793538192,3.7252,4252.6,4252.5,0.47019]
[1754793538495,5.45257231,4252.6,4252.5,2.57289]
[1754793538699,0.8018,4252.6,4252.5,2.57289]
[1754793538890,2.1454,4252.5,4252.2,0.005]
[1754793539089,3.0502763,4252.6,4252.2,0.005]
[1754793539297,2.1454,4252.3,4252.2,0.005]
[1754793539496,2.1454,4252.3,4252.2,0.99573]
[1754793539700,2.9234,4252.7,4252.5,0.47019]
[1754793539900,2.9234,4252.7,4252.6,1.5822]
[1754793540304,0.005,4253.1,4253.0,3.37034]
[1754793540602,3.7302,4253.1,4253.0,1.5822]
[1754793541003,3.01164861,4253.1,4252.4,1.5822]
[1754793541201,2.3816,4252.8,4252.5,0.47019]
[1754793541395,0.005,4253.1,4252.7,2.3797]
[1754793541595,3.2078,4254.2,4253.5,2.9002]
[1754793541802,3.2078,4254.2,4254.1,2.9002]
[1754793541995,3.100186,4254.9,4254.7,0.46995]
[1754793542196,0.8018,4255.2,4254.9,0.46993]
[1754793542504,2.1454,4255.0,4254.9,0.46993]
[1754793543008,2.9234,4254.8,4254.6,0.46996]
[1754793543207,3.7252,4254.6,4254.5,3.2078]
[1754793543403,2.98491888,4254.7,4254.3,0.46999]
[1754793543607,2.1454,4254.4,4254.3,0.46999]
[1754793543803,0.8018,4254.4,4254.3,0.46999]
[1754793544108,2.1454,4255.1,4255.0,0.46991]
[1754793544303,2.1454,4255.1,4254.9,0.46993]
[1754793544605,3.114751,4255.1,4254.9,0.59813]
[1754793544805,0.8018,4255.3,4255.2,0.96029]
[1754793545002,3.2078,4255.9,4254.8,3.2078]
[1754793545003,0.8018,4255.8,4255.7,0.46984]
[1754793545602,1.3436,4256.2,4255.7,0.46984]
[1754793545603,2.0999,4256.2,4255.7,0.4898]
[1754793545803,3.6908,4257.0,4256.5,0.46974]
[1754793546013,2.9345,4256.8,4255.9,0.46982]
[1754793546304,2.0557,4256.3,4255.8,0.46983]